[Event "Titled Tuesday Blitz December 06 Late 2022"]
[White "Szyszylo, Rafal"]
[Black "Stoleriu, George"]
[WhiteFideId "1109626"]
[BlackFideId "1227505"]
[WhiteElo "1981"]
[BlackElo "2287"]
[Result "0-1"]
[Round "02"]
[TimeControl "180+1"]
[Date "2022.12.07"]
[WhiteClock "0:00:01"]
[BlackClock "0:00:47"]

1. e4 {[%clk 0:03:00]}  d5 {[%clk 0:02:58]} 2. exd5 {[%clk 0:02:55]}  c6 {[%clk 0:02:59]} 3. Nf3 {[%clk 0:02:54]}  cxd5 {[%clk 0:02:57]} 4. d4 {[%clk 0:02:54]}  Nc6 {[%clk 0:02:58]} 5. Be2 {[%clk 0:02:54]}  Bg4 {[%clk 0:02:58]} 6. O-O {[%clk 0:02:54]}  e6 {[%clk 0:02:57]} 7. c3 {[%clk 0:02:51]}  Nf6 {[%clk 0:02:56]} 8. Nbd2 {[%clk 0:02:50]}  Bd6 {[%clk 0:02:55]} 9. h3 {[%clk 0:02:50]}  Bh5 {[%clk 0:02:53]} 10. Re1 {[%clk 0:02:49]}  O-O {[%clk 0:02:52]} 11. Nf1 {[%clk 0:02:48]}  Rc8 {[%clk 0:02:51]} 12. Bg5 {[%clk 0:02:46]}  h6 {[%clk 0:02:50]} 13. Bh4 {[%clk 0:02:45]}  Be7 {[%clk 0:02:44]} 14. Bg3 {[%clk 0:02:41]}  Ne4 {[%clk 0:02:41]} 15. Bh2 {[%clk 0:02:30]}  Bd6 {[%clk 0:02:34]} 16. Bxd6 {[%clk 0:02:15]}  Qxd6 {[%clk 0:02:35]} 17. N1h2 {[%clk 0:02:10]}  f5 {[%clk 0:02:35]} 18. Nd2 {[%clk 0:02:05]}  Bxe2 {[%clk 0:02:34]} 19. Qxe2 {[%clk 0:02:03]}  Rce8 {[%clk 0:02:26]} 20. Ndf3 {[%clk 0:01:48]}  g5 {[%clk 0:02:21]} 21. Ne5 {[%clk 0:01:47]}  Nxe5 {[%clk 0:02:16]} 22. dxe5 {[%clk 0:01:48]}  Qb6 {[%clk 0:02:13]} 23. Nf3 {[%clk 0:01:36]}  Rc8 {[%clk 0:02:10]} 24. Nd4 {[%clk 0:01:35]}  Rc4 {[%clk 0:02:07]} 25. Kh1 {[%clk 0:01:34]}  Re8 {[%clk 0:02:06]} 26. Kh2 {[%clk 0:01:28]}  Qc7 {[%clk 0:02:02]} 27. Kg1 {[%clk 0:01:12]}  Qxe5 {[%clk 0:01:55]} 28. f3 {[%clk 0:01:11]}  Rxd4 {[%clk 0:01:55]} 29. cxd4 {[%clk 0:01:02]}  Qxd4+ {[%clk 0:01:56]} 30. Kh2 {[%clk 0:00:57]}  Qe5+ {[%clk 0:01:55]} 31. Kg1 {[%clk 0:00:57]}  Qd4+ {[%clk 0:01:55]} 32. Kh2 {[%clk 0:00:57]}  Nd6 {[%clk 0:01:42]} 33. Qe5 {[%clk 0:00:56]}  Qxe5+ {[%clk 0:01:40]} 34. Rxe5 {[%clk 0:00:57]}  Kf7 {[%clk 0:01:37]} 35. Rc1 {[%clk 0:00:57]}  Rc8 {[%clk 0:01:37]} 36. Rxc8 {[%clk 0:00:57]}  Nxc8 {[%clk 0:01:37]} 37. Re2 {[%clk 0:00:49]}  Ke7 {[%clk 0:01:34]} 38. Rc2 {[%clk 0:00:47]}  Kd7 {[%clk 0:01:35]} 39. Kg3 {[%clk 0:00:40]}  Nd6 {[%clk 0:01:32]} 40. h4 {[%clk 0:00:40]}  e5 {[%clk 0:01:24]} 41. hxg5 {[%clk 0:00:40]}  hxg5 {[%clk 0:01:25]} 42. Kf2 {[%clk 0:00:40]}  d4 {[%clk 0:01:10]} 43. g4 {[%clk 0:00:36]}  fxg4 {[%clk 0:01:04]} 44. fxg4 {[%clk 0:00:37]}  Ke6 {[%clk 0:01:04]} 45. Rc7 {[%clk 0:00:32]}  Kd5 {[%clk 0:01:04]} 46. Ke2 {[%clk 0:00:26]}  e4 {[%clk 0:01:03]} 47. Rg7 {[%clk 0:00:26]}  d3+ {[%clk 0:01:03]} 48. Kd1 {[%clk 0:00:20]}  Nc4 {[%clk 0:01:01]} 49. Rxg5+ {[%clk 0:00:20]}  Kd4 {[%clk 0:01:01]} 50. b3 {[%clk 0:00:20]}  Nb2+ {[%clk 0:00:52]} 51. Kc1 {[%clk 0:00:21]}  e3 {[%clk 0:00:52]} 52. Kxb2 {[%clk 0:00:15]}  e2 {[%clk 0:00:51]} 53. Rg7 {[%clk 0:00:08]}  e1=Q {[%clk 0:00:49]} 54. Rd7+ {[%clk 0:00:07]}  Kc5 {[%clk 0:00:47]} 55. Rxb7 {[%clk 0:00:06]}  d2 {[%clk 0:00:46]} 56. Rc7+ {[%clk 0:00:02]}  Kb6 {[%clk 0:00:46]} 57. Rd7 {[%clk 0:00:02]}  d1=Q {[%clk 0:00:46]} 58. Rxd1 {[%clk 0:00:02]}  Qxd1 {[%clk 0:00:46]} 59. g5 {[%clk 0:00:01]}  Qg4 {[%clk 0:00:47]} 0-1


[Site "https://www.chess.com"]

[Event "Titled Tuesday Blitz December 06 Late 2022"]
[White "Taboas Rodriguez, Daniel"]
[Black "Aung Thant Zin"]
[WhiteFideId "2208466"]
[BlackFideId "13000063"]
[WhiteElo "2329"]
[BlackElo "2278"]
[Result "1-0"]
[Round "02"]
[TimeControl "180+1"]
[Date "2022.12.07"]
[WhiteClock "0:01:26"]
[BlackClock "0:00:15"]

1. d4 {[%clk 0:03:00]}  Nf6 {[%clk 0:02:02]} 2. Nf3 {[%clk 0:03:00]}  e6 {[%clk 0:02:02]} 3. c4 {[%clk 0:03:00]}  d5 {[%clk 0:02:03]} 4. Bg5 {[%clk 0:02:59]}  Be7 {[%clk 0:02:03]} 5. e3 {[%clk 0:02:59]}  O-O {[%clk 0:02:03]} 6. Nc3 {[%clk 0:03:00]}  Ne4 {[%clk 0:02:04]} 7. Bxe7 {[%clk 0:02:59]}  Qxe7 {[%clk 0:02:04]} 8. Rc1 {[%clk 0:02:59]}  c6 {[%clk 0:02:03]} 9. Bd3 {[%clk 0:02:58]}  f5 {[%clk 0:02:03]} 10. O-O {[%clk 0:02:57]}  Kh8 {[%clk 0:02:01]} 11. Ne5 {[%clk 0:02:38]}  Nd7 {[%clk 0:01:54]} 12. f4 {[%clk 0:02:38]}  Nxe5 {[%clk 0:01:51]} 13. fxe5 {[%clk 0:02:38]}  Bd7 {[%clk 0:01:49]} 14. Bxe4 {[%clk 0:02:32]}  fxe4 {[%clk 0:01:48]} 15. Qg4 {[%clk 0:02:31]}  Qb4 {[%clk 0:01:41]} 16. cxd5 {[%clk 0:02:26]}  cxd5 {[%clk 0:01:30]} 17. Nxd5 {[%clk 0:02:25]}  Qxb2 {[%clk 0:01:30]} 18. Nf4 {[%clk 0:02:11]}  Qxa2 {[%clk 0:01:21]} 19. Rc7 {[%clk 0:02:08]}  Rad8 {[%clk 0:01:16]} 20. Rxb7 {[%clk 0:02:05]}  Qa4 {[%clk 0:01:06]} 21. d5 {[%clk 0:01:48]}  Qa6 {[%clk 0:00:29]} 22. Rfb1 {[%clk 0:01:33]}  Rxf4 {[%clk 0:00:17]} 23. Qxf4 {[%clk 0:01:27]}  exd5 {[%clk 0:00:15]} 24. Rxd7 {[%clk 0:01:26]} 1-0


[Site "https://www.chess.com"]

[Event "Titled Tuesday Blitz December 06 Late 2022"]
[White "Walentukiewicz, Michal"]
[Black "Bazzano, Sebastian"]
[WhiteFideId "1126903"]
[BlackFideId "104566"]
[WhiteElo "2028"]
[BlackElo "2196"]
[Result "1-0"]
[Round "02"]
[TimeControl "180+1"]
[Date "2022.12.07"]
[WhiteClock "0:02:01"]
[BlackClock "0:00:11"]

1. g3 {[%clk 0:03:00]}  Nf6 {[%clk 0:02:59]} 2. Bg2 {[%clk 0:03:01]}  g6 {[%clk 0:02:59]} 3. Nf3 {[%clk 0:03:01]}  Bg7 {[%clk 0:03:00]} 4. O-O {[%clk 0:03:02]}  O-O {[%clk 0:03:01]} 5. c4 {[%clk 0:03:02]}  c5 {[%clk 0:02:59]} 6. Nc3 {[%clk 0:03:02]}  Nc6 {[%clk 0:02:58]} 7. d3 {[%clk 0:03:02]}  d6 {[%clk 0:02:57]} 8. Rb1 {[%clk 0:03:02]}  e5 {[%clk 0:02:51]} 9. a3 {[%clk 0:03:03]}  a5 {[%clk 0:02:49]} 10. Ne1 {[%clk 0:03:02]}  Be6 {[%clk 0:02:45]} 11. Nc2 {[%clk 0:03:02]}  d5 {[%clk 0:02:42]} 12. cxd5 {[%clk 0:03:03]}  Nxd5 {[%clk 0:02:42]} 13. Ne3 {[%clk 0:03:02]}  Nce7 {[%clk 0:02:27]} 14. Bd2 {[%clk 0:02:54]}  Rc8 {[%clk 0:02:22]} 15. Ncxd5 {[%clk 0:02:53]}  Nxd5 {[%clk 0:02:22]} 16. b4 {[%clk 0:02:53]}  axb4 {[%clk 0:02:03]} 17. axb4 {[%clk 0:02:53]}  Nxe3 {[%clk 0:01:49]} 18. Bxe3 {[%clk 0:02:53]}  cxb4 {[%clk 0:01:49]} 19. Rxb4 {[%clk 0:02:52]}  Bd5 {[%clk 0:01:47]} 20. Bxd5 {[%clk 0:02:48]}  Qxd5 {[%clk 0:01:46]} 21. Qb1 {[%clk 0:02:48]}  Rc7 {[%clk 0:01:35]} 22. h4 {[%clk 0:02:47]}  Rfc8 {[%clk 0:01:26]} 23. Qb3 {[%clk 0:02:42]}  Qxb3 {[%clk 0:01:19]} 24. Rxb3 {[%clk 0:02:42]}  Rc2 {[%clk 0:01:19]} 25. Re1 {[%clk 0:02:42]}  R8c7 {[%clk 0:01:13]} 26. Kf1 {[%clk 0:02:42]}  Ra2 {[%clk 0:00:25]} 27. Reb1 {[%clk 0:02:37]}  Bf6 {[%clk 0:00:16]} 28. Rxb7 {[%clk 0:02:37]}  Rxb7 {[%clk 0:00:17]} 29. Rxb7 {[%clk 0:02:37]}  Kg7 {[%clk 0:00:18]} 30. Rb1 {[%clk 0:02:23]}  h5 {[%clk 0:00:17]} 31. Re1 {[%clk 0:02:22]}  Be7 {[%clk 0:00:16]} 32. Rb1 {[%clk 0:02:19]}  Rc2 {[%clk 0:00:15]} 33. Rb5 {[%clk 0:02:13]}  Bf6 {[%clk 0:00:14]} 34. Rd5 {[%clk 0:02:11]}  Ra2 {[%clk 0:00:14]} 35. Bc5 {[%clk 0:02:03]}  Ra1+ {[%clk 0:00:13]} 36. Kg2 {[%clk 0:02:03]}  Ra2 {[%clk 0:00:13]} 37. Kf3 {[%clk 0:02:03]}  Ra5 {[%clk 0:00:11]} 38. Bf8+ {[%clk 0:02:01]} 1-0


[Site "https://www.chess.com"]

[Event "Titled Tuesday Blitz December 06 Late 2022"]
[White "Winterberg, Lukas"]
[Black "Vykouk, Jan"]
[WhiteFideId "24622702"]
[BlackFideId "349658"]
[WhiteElo "2350"]
[BlackElo "2378"]
[Result "1-0"]
[Round "02"]
[TimeControl "180+1"]
[Date "2022.12.07"]
[WhiteClock "0:00:21"]
[BlackClock "0:00:16"]

1. Nf3 {[%clk 0:03:00]}  Nf6 {[%clk 0:02:59]} 2. b3 {[%clk 0:02:59]}  d5 {[%clk 0:02:57]} 3. Bb2 {[%clk 0:03:00]}  Bg4 {[%clk 0:02:57]} 4. Ne5 {[%clk 0:03:00]}  Bf5 {[%clk 0:02:56]} 5. g3 {[%clk 0:02:59]}  e6 {[%clk 0:02:56]} 6. Bg2 {[%clk 0:02:59]}  Nbd7 {[%clk 0:02:57]} 7. O-O {[%clk 0:02:55]}  a5 {[%clk 0:02:57]} 8. c4 {[%clk 0:02:54]}  c6 {[%clk 0:02:57]} 9. d3 {[%clk 0:02:53]}  a4 {[%clk 0:02:56]} 10. Nd2 {[%clk 0:02:49]}  h6 {[%clk 0:02:55]} 11. e4 {[%clk 0:02:48]}  dxe4 {[%clk 0:02:53]} 12. dxe4 {[%clk 0:02:49]}  Bh7 {[%clk 0:02:53]} 13. Nxd7 {[%clk 0:02:42]}  Qxd7 {[%clk 0:02:51]} 14. e5 {[%clk 0:02:38]}  Ng8 {[%clk 0:02:47]} 15. Ne4 {[%clk 0:02:31]}  Bxe4 {[%clk 0:02:21]} 16. Bxe4 {[%clk 0:02:31]}  Qxd1 {[%clk 0:02:19]} 17. Rfxd1 {[%clk 0:02:31]}  Bc5 {[%clk 0:02:17]} 18. Kg2 {[%clk 0:02:26]}  Ne7 {[%clk 0:02:16]} 19. Rd2 {[%clk 0:02:17]}  Bb4 {[%clk 0:02:01]} 20. Rd3 {[%clk 0:02:14]}  a3 {[%clk 0:01:50]} 21. Bd4 {[%clk 0:02:10]}  O-O-O {[%clk 0:01:49]} 22. Rad1 {[%clk 0:02:10]}  c5 {[%clk 0:01:43]} 23. Be3 {[%clk 0:02:07]}  b6 {[%clk 0:01:33]} 24. f4 {[%clk 0:01:54]}  Rxd3 {[%clk 0:01:32]} 25. Rxd3 {[%clk 0:01:55]}  Rd8 {[%clk 0:01:32]} 26. Rxd8+ {[%clk 0:01:51]}  Kxd8 {[%clk 0:01:33]} 27. g4 {[%clk 0:01:51]}  Bc3 {[%clk 0:01:30]} 28. h4 {[%clk 0:01:44]}  Kd7 {[%clk 0:01:22]} 29. Kf3 {[%clk 0:01:44]}  f6 {[%clk 0:00:45]} 30. exf6 {[%clk 0:01:41]}  gxf6 {[%clk 0:00:45]} 31. f5 {[%clk 0:01:26]}  exf5 {[%clk 0:00:45]} 32. gxf5 {[%clk 0:01:03]}  h5 {[%clk 0:00:45]} 33. Bf4 {[%clk 0:01:00]}  Be1 {[%clk 0:00:44]} 34. Bg3 {[%clk 0:00:53]}  Bxg3 {[%clk 0:00:44]} 35. Kxg3 {[%clk 0:00:54]}  Nc8 {[%clk 0:00:26]} 36. Kf4 {[%clk 0:00:51]}  Nd6 {[%clk 0:00:27]} 37. Bf3 {[%clk 0:00:47]}  b5 {[%clk 0:00:27]} 38. Bxh5 {[%clk 0:00:43]}  bxc4 {[%clk 0:00:27]} 39. bxc4 {[%clk 0:00:44]}  Nxc4 {[%clk 0:00:27]} 40. Bf7 {[%clk 0:00:39]}  Ne5 {[%clk 0:00:26]} 41. Be6+ {[%clk 0:00:38]}  Ke7 {[%clk 0:00:26]} 42. h5 {[%clk 0:00:39]}  Kf8 {[%clk 0:00:24]} 43. h6 {[%clk 0:00:37]}  Nd3+ {[%clk 0:00:23]} 44. Ke4 {[%clk 0:00:35]}  Nf2+ {[%clk 0:00:19]} 45. Kd5 {[%clk 0:00:34]}  Ng4 {[%clk 0:00:19]} 46. Kxc5 {[%clk 0:00:27]}  Nxh6 {[%clk 0:00:19]} 47. Kb4 {[%clk 0:00:28]}  Ke7 {[%clk 0:00:20]} 48. Kxa3 {[%clk 0:00:28]}  Kd6 {[%clk 0:00:20]} 49. Kb4 {[%clk 0:00:29]}  Ng4 {[%clk 0:00:19]} 50. Kb5 {[%clk 0:00:28]}  Kc7 {[%clk 0:00:20]} 51. a4 {[%clk 0:00:25]}  Ne5 {[%clk 0:00:20]} 52. a5 {[%clk 0:00:26]}  Nf3 {[%clk 0:00:16]} 53. Kc5 {[%clk 0:00:25]}  Ne5 {[%clk 0:00:16]} 54. a6 {[%clk 0:00:25]}  Nd3+ {[%clk 0:00:16]} 55. Kd4 {[%clk 0:00:24]}  Nb4 {[%clk 0:00:15]} 56. Bc4 {[%clk 0:00:23]}  Nc6+ {[%clk 0:00:15]} 57. Kc5 {[%clk 0:00:23]}  Ne7 {[%clk 0:00:13]} 58. Bd3 {[%clk 0:00:20]}  Kb8 {[%clk 0:00:13]} 59. Kd6 {[%clk 0:00:20]}  Nxf5+ {[%clk 0:00:10]} 60. Bxf5 {[%clk 0:00:19]}  Ka7 {[%clk 0:00:11]} 61. Bd3 {[%clk 0:00:19]}  f5 {[%clk 0:00:11]} 62. Ke5 {[%clk 0:00:20]}  f4 {[%clk 0:00:12]} 63. Kxf4 {[%clk 0:00:20]}  Kb6 {[%clk 0:00:13]} 64. Ke5 {[%clk 0:00:21]}  Ka7 {[%clk 0:00:14]} 65. Kd6 {[%clk 0:00:21]}  Kb6 {[%clk 0:00:15]} 66. Kd7 {[%clk 0:00:21]}  Ka7 {[%clk 0:00:16]} 67. Kc8 {[%clk 0:00:21]}  Ka8 {[%clk 0:00:15]} 68. Kc7 {[%clk 0:00:18]}  Ka7 {[%clk 0:00:16]} 69. Kc6 {[%clk 0:00:19]}  Ka8 {[%clk 0:00:15]} 70. Kb6 {[%clk 0:00:19]}  Kb8 {[%clk 0:00:15]} 71. a7+ {[%clk 0:00:20]}  Kc8 {[%clk 0:00:15]} 72. a8=Q+ {[%clk 0:00:20]}  Kd7 {[%clk 0:00:16]} 73. Qc6+ {[%clk 0:00:20]}  Ke7 {[%clk 0:00:16]} 74. Ba6 {[%clk 0:00:20]}  Kf7 {[%clk 0:00:15]} 75. Kc5 {[%clk 0:00:21]}  Kg7 {[%clk 0:00:16]} 76. Qe6 {[%clk 0:00:21]}  Kh7 {[%clk 0:00:16]} 77. Qg4 {[%clk 0:00:21]} 1-0


[Site "https://www.chess.com"]

[Event "Titled Tuesday Blitz December 06 Late 2022"]
[White "Xiong, Jeffery"]
[Black "Rastbod, Ali"]
[WhiteFideId "2047640"]
[BlackFideId "12567477"]
[WhiteElo "2726"]
[BlackElo "2223"]
[Result "1-0"]
[Round "02"]
[TimeControl "180+1"]
[Date "2022.12.06"]
[WhiteClock "0:00:46"]
[BlackClock "0:00:03"]

1. e4 {[%clk 0:03:00]}  e6 {[%clk 0:02:56]} 2. d4 {[%clk 0:03:00]}  d5 {[%clk 0:02:57]} 3. e5 {[%clk 0:02:54]}  c5 {[%clk 0:02:53]} 4. c3 {[%clk 0:02:54]}  b6 {[%clk 0:02:54]} 5. h4 {[%clk 0:02:52]}  Qd7 {[%clk 0:02:53]} 6. h5 {[%clk 0:02:52]}  Ba6 {[%clk 0:02:52]} 7. Bxa6 {[%clk 0:02:52]}  Nxa6 {[%clk 0:02:53]} 8. a3 {[%clk 0:02:45]}  Rc8 {[%clk 0:02:45]} 9. Rh3 {[%clk 0:02:34]}  Ne7 {[%clk 0:02:34]} 10. Bf4 {[%clk 0:02:33]}  Qb5 {[%clk 0:02:25]} 11. b4 {[%clk 0:02:21]}  cxd4 {[%clk 0:02:17]} 12. cxd4 {[%clk 0:02:22]}  Nb8 {[%clk 0:01:24]} 13. Nc3 {[%clk 0:02:22]}  Qd7 {[%clk 0:01:24]} 14. Nge2 {[%clk 0:02:17]}  Rc4 {[%clk 0:01:23]} 15. Kf1 {[%clk 0:02:10]}  Nbc6 {[%clk 0:01:17]} 16. Na4 {[%clk 0:01:52]}  Nb8 {[%clk 0:00:47]} 17. Nb2 {[%clk 0:01:49]}  Rc6 {[%clk 0:00:44]} 18. b5 {[%clk 0:01:32]}  Rc8 {[%clk 0:00:42]} 19. a4 {[%clk 0:01:32]}  Nf5 {[%clk 0:00:40]} 20. g4 {[%clk 0:01:33]}  Nh6 {[%clk 0:00:41]} 21. Rg3 {[%clk 0:01:18]}  Be7 {[%clk 0:00:40]} 22. Qd2 {[%clk 0:01:18]}  Qd8 {[%clk 0:00:30]} 23. a5 {[%clk 0:01:08]}  Ng8 {[%clk 0:00:17]} 24. g5 {[%clk 0:01:07]}  Nd7 {[%clk 0:00:11]} 25. axb6 {[%clk 0:00:56]}  Qxb6 {[%clk 0:00:10]} 26. Rb3 {[%clk 0:00:56]}  g6 {[%clk 0:00:07]} 27. Ra6 {[%clk 0:00:55]}  Qb7 {[%clk 0:00:07]} 28. Qa5 {[%clk 0:00:54]}  Ra8 {[%clk 0:00:06]} 29. b6 {[%clk 0:00:53]}  Bd8 {[%clk 0:00:05]} 30. Rxa7 {[%clk 0:00:48]}  Bxb6 {[%clk 0:00:03]} 31. Rxa8+ {[%clk 0:00:46]} 1-0


[Site "https://www.chess.com"]

[Event "Titled Tuesday Blitz December 06 Late 2022"]
[White "Yi, Richard"]
[Black "Zeman, Matyas"]
[WhiteFideId "2079518"]
[BlackFideId "364398"]
[WhiteElo "2147"]
[BlackElo "2254"]
[Result "1-0"]
[Round "02"]
[TimeControl "180+1"]
[Date "2022.12.07"]
[WhiteClock "0:00:02"]
[BlackClock "0:00:03"]

1. d4 {[%clk 0:02:59]}  Nf6 {[%clk 0:02:58]} 2. c4 {[%clk 0:02:59]}  e6 {[%clk 0:02:58]} 3. Nc3 {[%clk 0:03:00]}  d5 {[%clk 0:02:58]} 4. Nf3 {[%clk 0:02:59]}  c6 {[%clk 0:02:58]} 5. e3 {[%clk 0:02:57]}  Nbd7 {[%clk 0:02:58]} 6. Qc2 {[%clk 0:02:55]}  Bd6 {[%clk 0:02:58]} 7. Be2 {[%clk 0:02:53]}  O-O {[%clk 0:02:56]} 8. O-O {[%clk 0:02:51]}  b6 {[%clk 0:02:54]} 9. e4 {[%clk 0:02:48]}  dxe4 {[%clk 0:02:53]} 10. Nxe4 {[%clk 0:02:49]}  Nxe4 {[%clk 0:02:53]} 11. Qxe4 {[%clk 0:02:49]}  Bb7 {[%clk 0:02:49]} 12. Bd3 {[%clk 0:02:44]}  Nf6 {[%clk 0:02:48]} 13. Qe2 {[%clk 0:02:43]}  c5 {[%clk 0:02:47]} 14. dxc5 {[%clk 0:02:37]}  Bxc5 {[%clk 0:02:45]} 15. b3 {[%clk 0:02:35]}  Qc7 {[%clk 0:02:33]} 16. Bb2 {[%clk 0:02:35]}  Ng4 {[%clk 0:02:34]} 17. Bxh7+ {[%clk 0:02:04]}  Kh8 {[%clk 0:02:19]} 18. Be4 {[%clk 0:02:05]}  Bxe4 {[%clk 0:01:31]} 19. Qxe4 {[%clk 0:02:05]}  f5 {[%clk 0:01:32]} 20. Qxe6 {[%clk 0:01:53]}  Rae8 {[%clk 0:01:31]} 21. Qg6 {[%clk 0:01:43]}  Re2 {[%clk 0:01:30]} 22. Qh5+ {[%clk 0:01:22]}  Kg8 {[%clk 0:01:30]} 23. Bd4 {[%clk 0:01:23]}  Re6 {[%clk 0:00:55]} 24. Bxc5 {[%clk 0:01:14]}  Rh6 {[%clk 0:00:54]} 25. Qxh6 {[%clk 0:00:52]}  Nxh6 {[%clk 0:00:40]} 26. Bxf8 {[%clk 0:00:52]}  Kxf8 {[%clk 0:00:40]} 27. Rad1 {[%clk 0:00:51]}  Nf7 {[%clk 0:00:39]} 28. Rd5 {[%clk 0:00:50]}  g6 {[%clk 0:00:37]} 29. Rfd1 {[%clk 0:00:50]}  Qe7 {[%clk 0:00:31]} 30. Nd4 {[%clk 0:00:46]}  Qe4 {[%clk 0:00:31]} 31. Nf3 {[%clk 0:00:36]}  g5 {[%clk 0:00:28]} 32. R5d4 {[%clk 0:00:31]}  Qc2 {[%clk 0:00:28]} 33. R4d2 {[%clk 0:00:31]}  Qe4 {[%clk 0:00:25]} 34. Re1 {[%clk 0:00:29]}  Qc6 {[%clk 0:00:19]} 35. Nd4 {[%clk 0:00:29]}  Qf6 {[%clk 0:00:18]} 36. Ne6+ {[%clk 0:00:30]}  Kg8 {[%clk 0:00:17]} 37. g3 {[%clk 0:00:26]}  g4 {[%clk 0:00:17]} 38. Rd7 {[%clk 0:00:26]}  Ne5 {[%clk 0:00:17]} 39. Rd8+ {[%clk 0:00:16]}  Kh7 {[%clk 0:00:17]} 40. Nf8+ {[%clk 0:00:08]}  Kh6 {[%clk 0:00:18]} 41. Re8 {[%clk 0:00:04]}  Nf3+ {[%clk 0:00:17]} 42. Kf1 {[%clk 0:00:05]}  Nxe1 {[%clk 0:00:16]} 43. Re6 {[%clk 0:00:05]}  Qxe6 {[%clk 0:00:14]} 44. Nxe6 {[%clk 0:00:06]}  Nf3 {[%clk 0:00:14]} 45. Kg2 {[%clk 0:00:06]}  Kg6 {[%clk 0:00:13]} 46. Nf8+ {[%clk 0:00:03]}  Kf7 {[%clk 0:00:12]} 47. Nd7 {[%clk 0:00:03]}  Ke6 {[%clk 0:00:12]} 48. Nb8 {[%clk 0:00:03]}  Ne1+ {[%clk 0:00:07]} 49. Kf1 {[%clk 0:00:02]}  Nd3 {[%clk 0:00:08]} 50. Ke2 {[%clk 0:00:02]}  Nc1+ {[%clk 0:00:08]} 51. Kd2 {[%clk 0:00:03]}  Nxa2 {[%clk 0:00:09]} 52. Nc6 {[%clk 0:00:03]}  a5 {[%clk 0:00:08]} 53. Kc2 {[%clk 0:00:02]}  f4 {[%clk 0:00:04]} 54. gxf4 {[%clk 0:00:02]}  Kf5 {[%clk 0:00:05]} 55. Kd3 {[%clk 0:00:01]}  Kxf4 {[%clk 0:00:05]} 56. Ke2 {[%clk 0:00:02]}  Nc3+ {[%clk 0:00:05]} 57. Kf1 {[%clk 0:00:02]}  Ne4 {[%clk 0:00:06]} 58. Ke1 {[%clk 0:00:02]}  Kf3 {[%clk 0:00:05]} 59. Ne7 {[%clk 0:00:02]}  Nxf2 {[%clk 0:00:03]} 60. Nd5 {[%clk 0:00:03]}  Nd3+ {[%clk 0:00:04]} 61. Kd2 {[%clk 0:00:02]}  Nc5 {[%clk 0:00:04]} 62. Kc3 {[%clk 0:00:03]}  Kg2 {[%clk 0:00:04]} 63. Ne3+ {[%clk 0:00:02]}  Kf3 {[%clk 0:00:05]} 64. Nd5 {[%clk 0:00:02]}  Ne4+ {[%clk 0:00:05]} 65. Kd4 {[%clk 0:00:02]}  Nd2 {[%clk 0:00:05]} 66. Kc3 {[%clk 0:00:01]}  Ne4+ {[%clk 0:00:05]} 67. Kc2 {[%clk 0:00:02]}  Kg2 {[%clk 0:00:05]} 68. Nxb6 {[%clk 0:00:02]}  Kxh2 {[%clk 0:00:05]} 69. Nd5 {[%clk 0:00:02]}  g3 {[%clk 0:00:06]} 70. Nf4 {[%clk 0:00:03]}  Nc5 {[%clk 0:00:05]} 71. Kb2 {[%clk 0:00:03]}  Kg1 {[%clk 0:00:05]} 72. Kc3 {[%clk 0:00:03]}  Kf2 {[%clk 0:00:05]} 73. Nh3+ {[%clk 0:00:03]}  Kf3 {[%clk 0:00:05]} 74. b4 {[%clk 0:00:02]}  Ne4+ {[%clk 0:00:04]} 75. Kb3 {[%clk 0:00:02]}  Nd2+ {[%clk 0:00:04]} 76. Kc3 {[%clk 0:00:02]}  Ne4+ {[%clk 0:00:02]} 77. Kb3 {[%clk 0:00:02]}  Kg4 {[%clk 0:00:01]} 78. Ng1 {[%clk 0:00:02]}  g2 {[%clk 0:00:01]} 79. bxa5 {[%clk 0:00:02]}  Kg3 {[%clk 0:00:01]} 80. a6 {[%clk 0:00:02]}  Kf2 {[%clk 0:00:01]} 81. a7 {[%clk 0:00:02]}  Nd2+ {[%clk 0:00:01]} 82. Kc2 {[%clk 0:00:01]}  Kxg1 {[%clk 0:00:02]} 83. a8=Q {[%clk 0:00:02]}  Nf3 {[%clk 0:00:03]} 84. Qxf3 {[%clk 0:00:01]}  Kh2 {[%clk 0:00:04]} 85. Qe3 {[%clk 0:00:02]}  Kh1 {[%clk 0:00:03]} 86. Qf2 {[%clk 0:00:02]}  g1=Q {[%clk 0:00:03]} 87. Qxg1+ {[%clk 0:00:02]} 1-0


[Site "https://www.chess.com"]

[Event "Titled Tuesday Blitz December 06 Late 2022"]
[White "Zhigalko, Sergei"]
[Black "Domingo Nunez, Ruben"]
[WhiteFideId "13502956"]
[BlackFideId "22245570"]
[WhiteElo "2662"]
[BlackElo "2406"]
[Result "1-0"]
[Round "02"]
[TimeControl "180+1"]
[Date "2022.12.06"]
[WhiteClock "0:00:05"]
[BlackClock "0:00:05"]

1. e4 {[%clk 0:03:00]}  c6 {[%clk 0:02:57]} 2. d4 {[%clk 0:02:57]}  d5 {[%clk 0:02:57]} 3. e5 {[%clk 0:02:58]}  g6 {[%clk 0:02:57]} 4. Nf3 {[%clk 0:02:58]}  Bg7 {[%clk 0:02:58]} 5. Bd3 {[%clk 0:02:58]}  Bg4 {[%clk 0:02:58]} 6. Nbd2 {[%clk 0:02:57]}  f6 {[%clk 0:02:58]} 7. h3 {[%clk 0:02:56]}  Be6 {[%clk 0:02:58]} 8. O-O {[%clk 0:02:53]}  Nh6 {[%clk 0:02:59]} 9. Re1 {[%clk 0:02:48]}  Qd7 {[%clk 0:02:49]} 10. Nb3 {[%clk 0:02:44]}  b6 {[%clk 0:02:47]} 11. Qe2 {[%clk 0:02:20]}  f5 {[%clk 0:02:39]} 12. a4 {[%clk 0:02:14]}  a5 {[%clk 0:02:37]} 13. Ng5 {[%clk 0:02:15]}  Nf7 {[%clk 0:02:36]} 14. Nxe6 {[%clk 0:02:03]}  Qxe6 {[%clk 0:02:35]} 15. c4 {[%clk 0:02:04]}  O-O {[%clk 0:02:31]} 16. Nd2 {[%clk 0:01:51]}  Ng5 {[%clk 0:02:20]} 17. Nb1 {[%clk 0:01:33]}  Ne4 {[%clk 0:02:18]} 18. f3 {[%clk 0:01:29]}  Ng3 {[%clk 0:02:17]} 19. Qf2 {[%clk 0:01:29]}  dxc4 {[%clk 0:02:13]} 20. Bc2 {[%clk 0:01:24]}  f4 {[%clk 0:02:02]} 21. Nc3 {[%clk 0:01:19]}  Na6 {[%clk 0:02:02]} 22. Ne4 {[%clk 0:01:13]}  Nb4 {[%clk 0:01:55]} 23. Bb1 {[%clk 0:01:10]}  Rad8 {[%clk 0:01:47]} 24. Ra3 {[%clk 0:01:10]}  Nf5 {[%clk 0:01:36]} 25. Bxf4 {[%clk 0:00:55]}  Nxd4 {[%clk 0:01:31]} 26. Ng5 {[%clk 0:00:51]}  Qc8 {[%clk 0:01:10]} 27. Be3 {[%clk 0:00:40]}  Bxe5 {[%clk 0:01:01]} 28. Nxh7 {[%clk 0:00:37]}  Nf5 {[%clk 0:00:36]} 29. Nxf8 {[%clk 0:00:34]}  Bg3 {[%clk 0:00:36]} 30. Nxg6 {[%clk 0:00:26]}  Bxf2+ {[%clk 0:00:34]} 31. Bxf2 {[%clk 0:00:27]}  Nd3 {[%clk 0:00:27]} 32. Rxe7 {[%clk 0:00:22]}  Nxf2 {[%clk 0:00:23]} 33. Kxf2 {[%clk 0:00:22]}  Rd2+ {[%clk 0:00:23]} 34. Ke1 {[%clk 0:00:11]}  Qd8 {[%clk 0:00:22]} 35. Bxf5 {[%clk 0:00:10]}  Rd1+ {[%clk 0:00:11]} 36. Kf2 {[%clk 0:00:10]}  Qd4+ {[%clk 0:00:09]} 37. Rae3 {[%clk 0:00:05]}  Qd2+ {[%clk 0:00:07]} 38. Kg3 {[%clk 0:00:05]}  Qd6+ {[%clk 0:00:08]} 39. f4 {[%clk 0:00:04]}  Rd3 {[%clk 0:00:06]} 40. Be6+ {[%clk 0:00:04]}  Qxe6 {[%clk 0:00:05]} 41. Rxe6 {[%clk 0:00:05]}  Kf7 {[%clk 0:00:05]} 42. Rxd3 {[%clk 0:00:05]} 1-0


[Site "https://www.chess.com"]